[Event "Championnat d'Europe de Blitz"]
[Date "2024.12.09"]
[White "Dvirnyy, Danyyil"]
[Black "Magold, Filip"]
[WhiteElo "2491"]
[BlackElo "2428"]
[Round "5.32"]
[Result "1-0"]
[TimeControl "180+2"]

1. e4 {[%emt 00:00:02] [%clk 00:03:00]} d6 {[%emt 00:00:02] [%clk 00:03:03]} 2.
d4 {[%emt 00:00:01] [%clk 00:03:01]} Nf6 {[%emt 00:00:01] [%clk 00:03:03]} 3.
Bd3 {[%emt 00:00:08] [%clk 00:02:55]} g6 {[%emt 00:00:02] [%clk 00:03:04]} 4. c3
{[%emt 00:00:02] [%clk 00:02:55]} Bg7 {[%clk 00:03:04]} 5. Nf3 {[%emt 00:00:02]
[%clk 00:02:56]} a6 {[%emt 00:00:01] [%clk 00:03:05]} 6. O-O {[%emt 00:00:02]
[%clk 00:02:55]} O-O {[%emt 00:00:03] [%clk 00:03:05]} 7. h3 {[%emt 00:00:01]
[%clk 00:02:55]} c5 {[%emt 00:00:03] [%clk 00:03:05]} 8. Re1 {[%emt 00:00:05]
[%clk 00:02:53]} b5 {[%emt 00:00:05] [%clk 00:03:02]} 9. a4 {[%emt 00:00:19]
[%clk 00:02:35]} c4 {[%emt 00:00:22] [%clk 00:02:42]} 10. Bc2 {[%emt 00:00:03]
[%clk 00:02:34]} Bb7 {[%emt 00:00:02] [%clk 00:02:41]} 11. Nbd2 {[%emt 00:00:13]
[%clk 00:02:23]} Nbd7 {[%emt 00:00:06] [%clk 00:02:38]} 12. Nf1 {[%emt 00:00:03]
[%clk 00:02:23]} e6 {[%emt 00:00:20] [%clk 00:02:20]} 13. Ng3 {[%emt 00:00:02]
[%clk 00:02:22]} Nb6 {[%emt 00:00:12] [%clk 00:02:10]} 14. Bf4 {[%emt 00:00:25]
[%clk 00:02:00]} Nxa4 {[%emt 00:00:21] [%clk 00:01:51]} 15. Bxa4 {[%emt
00:00:02] [%clk 00:01:59]} bxa4 {[%emt 00:00:01] [%clk 00:01:52]} 16. Rxa4
{[%emt 00:00:06] [%clk 00:01:55]} Rc8 {[%emt 00:00:18] [%clk 00:01:36]} 17. Qd2
{[%emt 00:00:02] [%clk 00:01:55]} Qd7 {[%emt 00:00:04] [%clk 00:01:35]} 18. Ra5
{[%emt 00:00:29] [%clk 00:01:28]} Rfe8 {[%emt 00:00:13] [%clk 00:01:23]} 19. Bh6
{[%emt 00:00:02] [%clk 00:01:29]} Bh8 {[%emt 00:00:01] [%clk 00:01:24]} 20. Qg5
{[%emt 00:00:15] [%clk 00:01:15]} Qd8 {[%emt 00:00:17] [%clk 00:01:10]} 21. Raa1
{[%emt 00:00:12] [%clk 00:01:05]} Nd7 {[%emt 00:00:17] [%clk 00:00:55]} 22. Qf4
{[%emt 00:00:03] [%clk 00:01:04]} e5 {[%emt 00:00:04] [%clk 00:00:54]} 23. Qd2
{[%emt 00:00:02] [%clk 00:01:04]} Nf6 {[%emt 00:00:05] [%clk 00:00:51]} 24. d5
{[%emt 00:00:07] [%clk 00:00:59]} Rb8 {[%emt 00:00:07] [%clk 00:00:45]} 25. Nh2
{[%emt 00:00:02] [%clk 00:01:00]} Bc8 {[%emt 00:00:03] [%clk 00:00:45]} 26. Nhf1
{[%emt 00:00:10] [%clk 00:00:51]} Qb6 {[%emt 00:00:07] [%clk 00:00:39]} 27. Ne3
{[%emt 00:00:02] [%clk 00:00:51]} Nd7 {[%emt 00:00:16] [%clk 00:00:25]} 28. Nxc4
{[%emt 00:00:03] [%clk 00:00:51]} Qc7 {[%clk 00:00:26]} 29. Na5 {[%emt 00:00:09]
[%clk 00:00:44]} Nb6 {[%emt 00:00:12] [%clk 00:00:17]} 30. b3 {[%emt 00:00:06]
[%clk 00:00:40]} Bd7 {[%emt 00:00:02] [%clk 00:00:17]} 31. c4 {[%emt 00:00:01]
[%clk 00:00:41]} Nc8 {[%emt 00:00:04] [%clk 00:00:14]} 32. b4 {[%emt 00:00:03]
[%clk 00:00:40]} Nb6 {[%emt 00:00:06] [%clk 00:00:10]} 33. Rec1 {[%emt 00:00:01]
[%clk 00:00:41]} Nc8 {[%emt 00:00:05] [%clk 00:00:07]} 34. c5 {[%emt 00:00:01]
[%clk 00:00:41]} dxc5 {[%emt 00:00:03] [%clk 00:00:06]} 35. bxc5 {[%emt
00:00:01] [%clk 00:00:42]} Bb5 {[%clk 00:00:07]} 36. c6 {[%emt 00:00:07] [%clk
00:00:37]} Nd6 {[%clk 00:00:08]} 37. Nb3 {[%emt 00:00:11] [%clk 00:00:29]} Nc4
{[%emt 00:00:05] [%clk 00:00:05]} 38. Qc3 {[%emt 00:00:06] [%clk 00:00:25]} Bf6
{[%emt 00:00:03] [%clk 00:00:04]} 39. Nc5 {[%emt 00:00:01] [%clk 00:00:25]} Nd6
{[%emt 00:00:03] [%clk 00:00:03]} 40. Nd7 {[%emt 00:00:04] [%clk 00:00:23]} Bh8
{[%emt 00:00:02] [%clk 00:00:03]} 41. Nxb8 {[%emt 00:00:02] [%clk 00:00:23]}
Rxb8 {[%clk 00:00:04]} 42. Qc5 {[%emt 00:00:04] [%clk 00:00:21]} Bf6 {[%emt
00:00:03] [%clk 00:00:04]} 43. Be3 {[%emt 00:00:03] [%clk 00:00:20]} Be7 {[%emt
00:00:01] [%clk 00:00:05]} 44. Qa7 {[%emt 00:00:02] [%clk 00:00:20]} Qxa7 {[%emt
00:00:01] [%clk 00:00:05]} 45. Bxa7 {[%clk 00:00:21]} Rc8 {[%clk 00:00:07]} 46.
Bc5 {[%clk 00:00:22]} Kf8 {[%emt 00:00:02] [%clk 00:00:07]} 47. f3 {[%clk
00:00:23]} Ke8 {[%emt 00:00:01] [%clk 00:00:08]} 48. Nf1 {[%emt 00:00:02] [%clk
00:00:23]} f5 {[%emt 00:00:02] [%clk 00:00:08]} 49. Nd2 {[%emt 00:00:02] [%clk
00:00:23]} h5 {[%emt 00:00:05] [%clk 00:00:05]} 50. exf5 {[%emt 00:00:02] [%clk
00:00:22]} gxf5 {[%clk 00:00:06]} 51. Re1 {[%clk 00:00:24]} Nf7 {[%emt 00:00:02]
[%clk 00:00:07]} 52. Nb3 {[%emt 00:00:10] [%clk 00:00:15]} Bc4 {[%emt 00:00:01]
[%clk 00:00:08]} 53. Bxe7 {[%emt 00:00:03] [%clk 00:00:14]} Kxe7 {[%clk
00:00:09]} 54. Nd4 {[%emt 00:00:02] [%clk 00:00:14]} Kf6 {[%emt 00:00:04] [%clk
00:00:07]} 55. Nc2 {[%emt 00:00:02] [%clk 00:00:14]} Bxd5 {[%emt 00:00:04] [%clk
00:00:05]} 56. Rxa6 {[%clk 00:00:15]} Bc4 {[%emt 00:00:02] [%clk 00:00:04]} 57.
Rb6 {[%emt 00:00:01] [%clk 00:00:16]} Kg5 {[%emt 00:00:02] [%clk 00:00:05]} 58.
Nb4 {[%emt 00:00:03] [%clk 00:00:15]} Kf4 {[%emt 00:00:03] [%clk 00:00:03]} 59.
Kf2 {[%emt 00:00:03] [%clk 00:00:14]} h4 {[%clk 00:00:05]} 60. Rc1 {[%emt
00:00:05] [%clk 00:00:11]} Be6 {[%emt 00:00:04] [%clk 00:00:03]} 61. Nd3+ {[%emt
00:00:01] [%clk 00:00:12]} Kg5 {[%emt 00:00:01] [%clk 00:00:04]} 62. Ke3 {[%emt
00:00:02] [%clk 00:00:12]} f4+ {[%clk 00:00:06]} 63. Kf2 {[%clk 00:00:13]} Bf5
{[%clk 00:00:07]} 64. Nb4 {[%emt 00:00:02] [%clk 00:00:13]} e4 {[%emt 00:00:03]
[%clk 00:00:07]} 65. fxe4 {[%emt 00:00:01] [%clk 00:00:13]} Bxe4 {[%clk
00:00:08]} 66. c7 {[%emt 00:00:01] [%clk 00:00:15]} Bf5 {[%emt 00:00:06] [%clk
00:00:04]} 67. Rb8 {[%clk 00:00:15]} Nd6 {[%clk 00:00:05]} 68. Rxc8 {[%clk
00:00:16]} Bxc8 {[%clk 00:00:07]} 69. Rc5+ {[%clk 00:00:18]} Kf6 {[%clk
00:00:08]} 70. Nd5+ {[%clk 00:00:19]} Ke5 {[%emt 00:00:01] [%clk 00:00:09]} 71.
Nb6+ {[%emt 00:00:02] [%clk 00:00:18]} Kd4 {[%clk 00:00:10]} 72. Rd5+ {[%clk
00:00:20]} 1-0

[Site "Europe Echecs"]

[Event "Championnat d'Europe de Blitz"]
[Date "2024.12.09"]
[White "Laurusas, Tomas"]
[Black "Ghimpu, Samuel-Timotei"]
[WhiteElo "2578"]
[BlackElo "2475"]
[Round "5.33"]
[Result "0-1"]
[TimeControl "180+2"]

1. d4 {[%clk 00:03:03]} Nf6 {[%emt 00:00:03] [%clk 00:03:03]} 2. c4 {[%clk
00:03:05]} e6 {[%clk 00:03:04]} 3. Nf3 {[%clk 00:03:06]} d5 {[%emt 00:00:02]
[%clk 00:03:04]} 4. Nc3 {[%clk 00:03:07]} c5 {[%emt 00:00:01] [%clk 00:03:05]}
5. cxd5 {[%emt 00:00:10] [%clk 00:02:59]} Nxd5 {[%emt 00:00:01] [%clk 00:03:05]}
6. g3 {[%emt 00:00:02] [%clk 00:03:00]} Nxc3 {[%emt 00:00:05] [%clk 00:03:02]}
7. bxc3 {[%emt 00:00:01] [%clk 00:03:01]} cxd4 {[%clk 00:03:03]} 8. cxd4 {[%clk
00:03:02]} Bb4+ {[%emt 00:00:01] [%clk 00:03:04]} 9. Bd2 {[%clk 00:03:03]} Bxd2+
{[%clk 00:03:05]} 10. Qxd2 {[%emt 00:00:01] [%clk 00:03:05]} b6 {[%emt 00:00:03]
[%clk 00:03:03]} 11. Bg2 {[%emt 00:00:03] [%clk 00:03:04]} Bb7 {[%emt 00:00:03]
[%clk 00:03:02]} 12. O-O {[%emt 00:00:02] [%clk 00:03:03]} O-O {[%emt 00:00:04]
[%clk 00:03:01]} 13. a4 {[%emt 00:00:01] [%clk 00:03:04]} Nd7 {[%emt 00:00:36]
[%clk 00:02:27]} 14. a5 {[%emt 00:00:03] [%clk 00:03:03]} bxa5 {[%clk 00:02:28]}
15. Rxa5 {[%emt 00:00:01] [%clk 00:03:04]} h6 {[%emt 00:00:23]} 16. Rfa1 {[%clk
00:02:48]} a6 {[%emt 00:00:09] [%clk 00:02:18]} 17. Qb4 {[%emt 00:00:04] [%clk
00:02:46]} Qc7 {[%emt 00:00:09] [%clk 00:02:12]} 18. h4 {[%emt 00:00:17] [%clk
00:02:31]} Rfb8 {[%emt 00:00:07] [%clk 00:02:07]} 19. Qa3 {[%emt 00:00:07] [%clk
00:02:26]} Rc8 {[%emt 00:00:36] [%clk 00:01:32]} 20. e3 {[%emt 00:00:11] [%clk
00:02:17]} Nf6 {[%emt 00:00:17] [%clk 00:01:17]} 21. Ne5 {[%emt 00:00:10] [%clk
00:02:09]} Bxg2 {[%emt 00:00:03] [%clk 00:01:16]} 22. Kxg2 {[%emt 00:00:01]
[%clk 00:02:10]} Qb7+ {[%emt 00:00:01] [%clk 00:01:17]} 23. Kg1 {[%emt 00:00:03]
[%clk 00:02:08]} Rc2 {[%emt 00:00:14] [%clk 00:01:05]} 24. Rc5 {[%emt 00:00:25]
[%clk 00:01:45]} Rxc5 {[%emt 00:00:08] [%clk 00:00:59]} 25. Qxc5 {[%emt
00:00:03] [%clk 00:01:44]} Rc8 {[%emt 00:00:04] [%clk 00:00:57]} 26. Qa3 {[%emt
00:00:23] [%clk 00:01:23]} Rc2 {[%emt 00:00:05] [%clk 00:00:54]} 27. Rc1 {[%emt
00:00:05] [%clk 00:01:20]} Rxc1+ {[%emt 00:00:10] [%clk 00:00:46]} 28. Qxc1
{[%clk 00:01:21]} a5 {[%emt 00:00:12] [%clk 00:00:36]} 29. Qc5 {[%emt 00:00:16]
[%clk 00:01:06]} a4 {[%emt 00:00:15] [%clk 00:00:24]} 30. Qa5 {[%clk 00:01:07]}
Qb1+ {[%emt 00:00:07] [%clk 00:00:18]} 31. Kg2 {[%emt 00:00:02] [%clk 00:01:08]}
Qe4+ {[%emt 00:00:04] [%clk 00:00:16]} 32. Kg1 {[%clk 00:01:09]} Qb1+ {[%emt
00:00:04] [%clk 00:00:13]} 33. Kg2 {[%emt 00:00:03] [%clk 00:01:09]} Qe4+ {[%emt
00:00:02] [%clk 00:00:13]} 34. Kh2 {[%emt 00:00:21] [%clk 00:00:49]} Qc2 {[%emt
00:00:01] [%clk 00:00:14]} 35. Qa8+ {[%emt 00:00:18] [%clk 00:00:33]} Kh7 {[%clk
00:00:15]} 36. Qf3 {[%emt 00:00:23] [%clk 00:00:12]} a3 {[%emt 00:00:01] [%clk
00:00:16]} 37. g4 {[%emt 00:00:02] [%clk 00:00:12]} a2 {[%emt 00:00:04] [%clk
00:00:13]} 38. g5 {[%clk 00:00:13]} Qe4 {[%emt 00:00:01] [%clk 00:00:14]} 39.
Qd1 {[%emt 00:00:07] [%clk 00:00:09]} Qxh4+ {[%emt 00:00:02] [%clk 00:00:13]}
40. Kg2 {[%clk 00:00:10]} Qxg5+ {[%emt 00:00:02] [%clk 00:00:13]} 41. Kf1 {[%clk
00:00:12]} Qf5 {[%emt 00:00:01] [%clk 00:00:14]} 42. Nd3 {[%emt 00:00:10] [%clk
00:00:04]} a1=Q {[%emt 00:00:06] [%clk 00:00:10]} 43. Qxa1 {[%clk 00:00:05]}
Qxd3+ {[%emt 00:00:01] [%clk 00:00:11]} 44. Kg2 {[%clk 00:00:06]} Qe4+ {[%emt
00:00:01] [%clk 00:00:12]} 45. Kg1 {[%clk 00:00:07]} Qf5 {[%emt 00:00:02] [%clk
00:00:12]} 46. Qa7 {[%emt 00:00:02] [%clk 00:00:06]} Ne4 {[%emt 00:00:03] [%clk
00:00:13]} 47. Qa2 {[%emt 00:00:01] [%clk 00:00:07]} h5 {[%emt 00:00:04] [%clk
00:00:10]} 48. Kg2 {[%emt 00:00:02] [%clk 00:00:07]} Qg4+ {[%emt 00:00:02] [%clk
00:00:10]} 49. Kf1 {[%emt 00:00:01] [%clk 00:00:08]} Qf3 {[%emt 00:00:03] [%clk
00:00:09]} 50. Kg1 {[%emt 00:00:03] [%clk 00:00:07]} h4 {[%emt 00:00:02] [%clk
00:00:09]} 51. Qc2 {[%emt 00:00:06] [%clk 00:00:03]} h3 {[%emt 00:00:01] [%clk
00:00:10]} 52. Qd3 {[%emt 00:00:03] [%clk 00:00:03]} Qg2# {[%emt 00:00:01] [%clk
00:00:11]} 0-1

[Site "Europe Echecs"]

[Event "Championnat d'Europe de Blitz"]
[Date "2024.12.09"]
[White "Tsolakidou, Stavroula"]
[Black "Paichadze, Luka"]
[WhiteElo "2451"]
[BlackElo "2532"]
[Round "5.34"]
[Result "0-1"]
[TimeControl "180+2"]

1. e4 {[%emt 00:17:06] [%clk 00:03:02]} c6 {[%emt 00:00:02] [%clk 00:03:02]} 2.
d4 {[%emt 00:00:02] [%clk 00:03:02]} d5 {[%emt 00:00:01] [%clk 00:03:03]} 3. e5
{[%emt 00:00:01] [%clk 00:03:02]} Bf5 {[%emt 00:00:01] [%clk 00:03:04]} 4. Nd2
{[%emt 00:00:02] [%clk 00:03:03]} e6 {[%emt 00:00:01] [%clk 00:03:04]} 5. Nb3
{[%emt 00:00:02] [%clk 00:03:03]} Nd7 {[%emt 00:00:02] [%clk 00:03:04]} 6. Nf3
{[%emt 00:00:01] [%clk 00:03:04]} Ne7 {[%emt 00:00:02] [%clk 00:03:04]} 7. Be2
{[%emt 00:00:01] [%clk 00:03:04]} h6 {[%emt 00:00:03] [%clk 00:03:03]} 8. O-O
{[%emt 00:00:03] [%clk 00:03:03]} g5 {[%emt 00:00:06] [%clk 00:02:59]} 9. Bd2
{[%emt 00:00:10] [%clk 00:02:55]} Bg7 {[%emt 00:00:25] [%clk 00:02:36]} 10. a4
{[%emt 00:00:30] [%clk 00:02:28]} O-O {[%emt 00:00:06] [%clk 00:02:31]} 11. a5
{[%emt 00:00:06] [%clk 00:02:24]} f6 {[%emt 00:00:10] [%clk 00:02:22]} 12. exf6
{[%emt 00:00:13] [%clk 00:02:14]} Rxf6 {[%emt 00:00:02] [%clk 00:02:22]} 13. Bb4
{[%emt 00:00:15] [%clk 00:02:01]} Ng6 {[%emt 00:00:02] [%clk 00:02:22]} 14. Bd6
{[%emt 00:00:09] [%clk 00:01:54]} Rf7 {[%emt 00:00:19] [%clk 00:02:06]} 15. c4
{[%emt 00:00:28] [%clk 00:01:28]} g4 {[%emt 00:00:12]} 16. Nfd2 {[%clk
00:01:24]} h5 {[%emt 00:00:04] [%clk 00:01:59]} 17. c5 {[%emt 00:00:22] [%clk
00:01:04]} a6 {[%emt 00:00:10] [%clk 00:01:51]} 18. f3 {[%emt 00:00:14] [%clk
00:00:52]} Qh4 {[%emt 00:00:21] [%clk 00:01:32]} 19. fxg4 {[%emt 00:00:21] [%clk
00:00:34]} hxg4 {[%emt 00:00:02] [%clk 00:01:31]} 20. Qe1 {[%emt 00:00:06] [%clk
00:00:30]} Qg5 {[%emt 00:00:16] [%clk 00:01:17]} 21. Qg3 {[%emt 00:00:06] [%clk
00:00:25]} Bh6 {[%emt 00:00:05] [%clk 00:01:14]} 22. Kh1 {[%emt 00:00:12] [%clk
00:00:16]} Nf6 {[%emt 00:00:02] [%clk 00:01:14]} 23. Qc3 {[%emt 00:00:11] [%clk
00:00:07]} Rh7 {[%emt 00:00:06] [%clk 00:01:11]} 24. Bd3 {[%emt 00:00:03] [%clk
00:00:06]} Nh5 {[%emt 00:00:28] [%clk 00:00:44]} 25. Bxf5 {[%emt 00:00:02] [%clk
00:00:06]} exf5 {[%emt 00:00:01] [%clk 00:00:45]} 26. Qd3 {[%emt 00:00:04] [%clk
00:00:05]} Nhf4 {[%emt 00:00:17] [%clk 00:00:30]} 27. Qe3 {[%emt 00:00:03] [%clk
00:00:04]} g3 {[%emt 00:00:04] [%clk 00:00:29]} 28. h3 {[%emt 00:00:01] [%clk
00:00:05]} Ne6 29. Qxe6+ {[%clk 00:00:06]} Kh8 {[%emt 00:00:01] [%clk 00:00:25]}
30. Rxf5 {[%clk 00:00:07]} 0-1

[Site "Europe Echecs"]

[Event "Championnat d'Europe de Blitz"]
[Date "2024.12.09"]
[White "Bernadskiy, Vitaliy"]
[Black "Dragicevic, Drazen"]
[WhiteElo "2546"]
[BlackElo "2332"]
[Round "5.35"]
[Result "1-0"]
[TimeControl "180+2"]

1. e4 {[%emt 00:16:52] [%clk 00:03:03]} e5 {[%emt 00:00:02] [%clk 00:03:02]} 2.
Nf3 {[%emt 00:00:01] [%clk 00:03:03]} Nf6 {[%emt 00:00:01] [%clk 00:03:03]} 3.
Nc3 {[%emt 00:00:04] [%clk 00:03:02]} Nc6 {[%emt 00:00:04] [%clk 00:03:02]} 4.
Bb5 {[%emt 00:00:01] [%clk 00:03:02]} d6 {[%emt 00:00:26] [%clk 00:02:39]} 5. d4
{[%emt 00:00:02] [%clk 00:03:02]} exd4 {[%emt 00:00:03] [%clk 00:02:37]} 6. Nxd4
{[%emt 00:00:01] [%clk 00:03:02]} Bd7 {[%emt 00:00:01] [%clk 00:02:38]} 7. O-O
{[%emt 00:00:02] [%clk 00:03:02]} Nxd4 {[%emt 00:00:06] [%clk 00:02:34]} 8. Qxd4
{[%emt 00:00:10] [%clk 00:02:55]} Bxb5 {[%emt 00:00:06] [%clk 00:02:30]} 9. Nxb5
{[%emt 00:00:01] [%clk 00:02:55]} a6 {[%emt 00:00:15] [%clk 00:02:18]} 10. Nc3
{[%emt 00:00:01] [%clk 00:02:55]} Be7 {[%emt 00:00:01] [%clk 00:02:19]} 11. Bg5
{[%emt 00:00:43] [%clk 00:02:14]} O-O {[%emt 00:00:03] [%clk 00:02:17]} 12. Rfe1
{[%emt 00:00:03] [%clk 00:02:14]} h6 {[%emt 00:00:13] [%clk 00:02:06]} 13. Bh4
{[%emt 00:00:03] [%clk 00:02:12]} Nd7 {[%emt 00:00:20] [%clk 00:01:48]} 14. Bxe7
{[%emt 00:00:02] [%clk 00:02:12]} Qxe7 {[%emt 00:00:01] [%clk 00:01:49]} 15. Nd5
{[%emt 00:00:02] [%clk 00:02:12]} Qe5 {[%emt 00:00:18] [%clk 00:01:33]} 16. Rad1
{[%emt 00:00:27] [%clk 00:01:47]} Qxd4 {[%emt 00:00:27] [%clk 00:01:08]} 17.
Rxd4 {[%emt 00:00:02] [%clk 00:01:47]} Nf6 {[%emt 00:00:32] [%clk 00:00:38]} 18.
Nxf6+ {[%emt 00:00:19] [%clk 00:01:30]} gxf6 {[%clk 00:00:39]} 19. Re3 {[%emt
00:00:01] [%clk 00:01:31]} Rfe8 {[%emt 00:00:11] [%clk 00:00:29]} 20. Kf1 {[%emt
00:00:19] [%clk 00:01:13]} Re5 {[%emt 00:00:11] [%clk 00:00:21]} 21. Rc3 {[%emt
00:00:09] [%clk 00:01:07]} Re7 {[%emt 00:00:08] [%clk 00:00:15]} 22. g4 {[%emt
00:00:17] [%clk 00:00:52]} b5 {[%emt 00:00:04] [%clk 00:00:13]} 23. f3 {[%emt
00:00:06] [%clk 00:00:48]} Kf8 {[%emt 00:00:03] [%clk 00:00:12]} 24. Rd5 {[%emt
00:00:06] [%clk 00:00:45]} Ra7 {[%emt 00:00:06] [%clk 00:00:08]} 25. Kf2 {[%emt
00:00:10]} Re5 {[%clk 00:00:08]} 26. Ke3 {[%emt 00:00:02] [%clk 00:00:38]} Ke7
{[%emt 00:00:05] [%clk 00:00:05]} 27. Kf4 {[%emt 00:00:06] [%clk 00:00:35]} Rxd5
{[%emt 00:00:05] [%clk 00:00:00]} 1-0

[Site "Europe Echecs"]

[Event "Championnat d'Europe de Blitz"]
[Date "2024.12.09"]
[White "Reprintsev, Alexander"]
[Black "Kalezic, Blazo"]
[WhiteElo "2230"]
[BlackElo "2382"]
[Round "5.36"]
[Result "1/2-1/2"]
[TimeControl "180+2"]

1. e4 {[%emt 00:00:02] [%clk 00:03:03]} e6 {[%clk 00:03:03]} 2. d4 {[%emt
00:00:02] [%clk 00:03:02]} d5 {[%emt 00:00:02] [%clk 00:03:04]} 3. Nc3 {[%emt
00:00:06] [%clk 00:02:58]} Nf6 {[%emt 00:00:02] [%clk 00:03:04]} 4. Bg5 {[%emt
00:00:02] [%clk 00:02:59]} Be7 {[%emt 00:00:02] [%clk 00:03:04]} 5. e5 {[%emt
00:00:04] [%clk 00:02:57]} Nfd7 {[%emt 00:00:01] [%clk 00:03:05]} 6. h4 {[%emt
00:00:03] [%clk 00:02:56]} a6 {[%emt 00:00:02] [%clk 00:03:05]} 7. Qg4 {[%emt
00:00:05] [%clk 00:02:52]} Bxg5 {[%emt 00:00:03] [%clk 00:03:05]} 8. hxg5 {[%emt
00:00:04] [%clk 00:02:50]} c5 {[%emt 00:00:02] [%clk 00:03:05]} 9. dxc5 {[%emt
00:00:34] [%clk 00:02:18]} Nc6 {[%emt 00:00:04] [%clk 00:03:03]} 10. Nf3 {[%emt
00:00:02] [%clk 00:02:19]} Qa5 {[%emt 00:00:18] [%clk 00:02:47]} 11. O-O-O
{[%emt 00:00:13] [%clk 00:02:08]} g6 {[%emt 00:00:15] [%clk 00:02:35]} 12. Rh4
{[%emt 00:00:20] [%clk 00:01:50]} Qxc5 {[%emt 00:00:10] [%clk 00:02:27]} 13. Qh3
{[%emt 00:00:05] [%clk 00:01:47]} Nf8 {[%emt 00:00:21] [%clk 00:02:08]} 14. Qg3
{[%emt 00:00:37] [%clk 00:01:12]} Bd7 {[%emt 00:00:28] [%clk 00:01:42]} 15. a3
{[%emt 00:00:03] [%clk 00:01:12]} O-O-O {[%emt 00:00:06] [%clk 00:01:38]} 16.
Ne2 {[%emt 00:00:07] [%clk 00:01:07]} Be8 {[%emt 00:00:14] [%clk 00:01:26]} 17.
Ned4 {[%emt 00:00:02] [%clk 00:01:08]} Nd7 {[%emt 00:00:11] [%clk 00:01:17]} 18.
Nxc6 {[%emt 00:00:02] [%clk 00:01:08]} Qxc6 {[%emt 00:00:01] [%clk 00:01:18]}
19. Kb1 {[%emt 00:00:07] [%clk 00:01:03]} Kb8 {[%emt 00:00:06] [%clk 00:01:14]}
20. c4 {[%emt 00:00:03] [%clk 00:01:03]} Nb6 {[%emt 00:00:04] [%clk 00:01:11]}
21. Rc1 {[%emt 00:00:19] [%clk 00:00:46]} Rc8 {[%emt 00:00:37] [%clk 00:00:36]}
22. Nd4 {[%emt 00:00:16] [%clk 00:00:32]} Qc7 {[%emt 00:00:12] [%clk 00:00:26]}
23. c5 {[%emt 00:00:04] [%clk 00:00:30]} Nc4 {[%emt 00:00:08] [%clk 00:00:19]}
24. Bxc4 {[%emt 00:00:02] [%clk 00:00:30]} dxc4 {[%emt 00:00:01] [%clk
00:00:20]} 25. Rxc4 {[%emt 00:00:02] [%clk 00:00:30]} Bc6 {[%emt 00:00:05] [%clk
00:00:18]} 26. Nxc6+ {[%emt 00:00:03] [%clk 00:00:29]} Qxc6 {[%emt 00:00:01]
[%clk 00:00:19]} 27. Rhd4 {[%emt 00:00:03] [%clk 00:00:27]} h5 {[%emt 00:00:08]
[%clk 00:00:12]} 28. gxh6 {[%emt 00:00:03] [%clk 00:00:27]} Rxh6 {[%emt
00:00:01] [%clk 00:00:13]} 29. Qf3 {[%emt 00:00:05] [%clk 00:00:24]} Qxf3 {[%emt
00:00:08] [%clk 00:00:07]} 30. gxf3 {[%clk 00:00:26]} Rh5 {[%emt 00:00:02] [%clk
00:00:08]} 31. Rf4 {[%emt 00:00:05] [%clk 00:00:23]} Rxe5 {[%emt 00:00:04] [%clk
00:00:06]} 32. Rxf7 {[%emt 00:00:02] [%clk 00:00:24]} Rcxc5 {[%emt 00:00:02]
[%clk 00:00:05]} 33. Rxc5 {[%emt 00:00:03] [%clk 00:00:23]} Rxc5 {[%clk
00:00:06]} 34. Rf6 {[%clk 00:00:25]} Rc6 {[%emt 00:00:07] [%clk 00:03:02]}
1/2-1/2

[Site "Europe Echecs"]